Workbook

Sheet Information
A1: These template sheets come with some scores already entered into cells.
A3: These scores act as placeholders and demonstrate what scores are necessary. The only sheets that require any user input is the WAIS-IV sheet.
A5: All cells, except those requiring entry, are protected. Use the TAB key to move from input cell to input cell.
A7: ****Be sure to delete any scores that do not pertain to your particular case.****
A9: We (Ron Dumont and John Willis) and The Psychological Corporation, take no responsibility for any errors made while using these templates.
A11: There may be some differences between some of the templates reporting and data in the WAIS-IV Manuals.
A13: The Percentiles reported here are simple SS to Percentile lookups. They are based upon the normal curve distribution.
A15: The Composite and FSIQ ranges are based upon a formula (SEe).
A17: Critical Values for subtest differences are approximations - because there are so many subtest combinations available, the template uses the rounded average of all possible critical values.
A19: Gf-Gc configurations were adapted from Appendix A, pp. 445 – 453, The Intelligence Test Desk Reference (ITDR): Gf-Gc Cross-Battery Assessment (McGrew & Flanagan, 1998) and Table 8.3, p. 312, The Wechsler Intelligence Scales and Gf-Gc Theory (Flanagan, McGrew & Ortiz, 2000)

Sheet WAIS-IV
A1: Wechsler Adult Intelligence Scale - Fourth Edition© The Psychological Corporation., 2008. All Rights Reserved
A2: Dumont-Willis WAIS-IV Interpretive Worksheet
A3: Use the TAB key to navigate to cells requiring input - Text highlighted in red
C5: Name: | D5: M C | G5: Date of Test: | H5: 2009-02-09 | M5: Date Analyzed: | N5: =NOW() -> 2014-02-11T13:47:10.280 | U5: =YEAR(H5) -> 2009 | V5: =MONTH(H5) -> 2 | W5: =DAY(H5) -> 9 | X5: =IF(Y6>Z5,U5-1,U5) -> 2008 | Y5: =IF(Y6>Z5,Z5+12,Z5) -> 14 | Z5: =IF(AA6>W5,V5-1,V5) -> 2 | AA5: =IF(AA6>W5,W5+30,W5) -> 9
G6: Date of Birth: | H6: 1983-11-06 | M6: Age: | N6: =AC7 -> 25 years, 3 months, 3 days | X6: =YEAR(H6) -> 1983 | Y6: =MONTH(H6) -> 11 | AA6: =DAY(H6) -> 6
X7: =X5-X6 -> 25 | Y7: =Y5-Y6 -> 3 | AA7: =AA5-AA6 -> 3 | AC7: =X7&" years, "&Y7&Y8&AA7&AA8 -> 25 years, 3 months, 3 days
N8: =IF(OR(X7<16,X7>99),"The age computed is not supported by the WAIS-IV","") ->  | T8: =FIND(" ",D5) -> 2 | U8: =MID(D5,1,T8-1) -> M | Y8: =IF(Y7=1," month, "," months, ") -> months, | AA8: =IF(AA7=1," day"," days") -> days
W9: 1 | X9: 2 | Z9: 4 | AA9: 5 | AB9: 6 | AC9: 7 | AD9: 8 | AE9: 9 | AF9: 10 | AG9: 11 | AH9: 12 | AI9: 13
W10: 16 | X10: 18 | Y10: 20 | Z10: 25 | AA10: 30 | AB10: 35 | AC10: 45 | AD10: 55 | AE10: 65 | AF10: 70 | AG10: 75 | AH10: 80 | AI10: 85
D11: SUBTESTS | F11: ss | G11: VCI | H11: PRI | I11: WM | J11: PS | K11: Full Scale | L11: PR | W11: =LOOKUP(N6,W10:AI10,W9:AI9) ->  | X11: age grp
B12: Check the subtests used in the Full Scale IQ calculation. Core subtests are those within the border | F12: 6 | H12: =IF(bd="","",IF(U12=0,"("&bd&")",bd)) -> 6 | K12: =IF(U12=0,"",IF(F12="","",F12)) -> 6 | L12: =IF(F12="","",LOOKUP(F12,$D$344:$W$344,$D$345:$W$345)) -> 9 | N12: =IF(W21>3,"You have selected too many subtests for calculation of a Verbal Comprehension Scale",IF(W21<3,"You have selected too few subtests for calculation of a Verbal Comprehension Scale","")) ->  | S12: bd | T12: TRUE | U12: =IF(T12=TRUE,1,0) -> 1 | V12: p | W12: VCI | Y12: PRI | Z12: fs | AA12: wmi | AC12: psi | AE12: wmi | AG12: ps
F13: 2 | G13: =IF(F13="","",IF(U13=0,"("&F13&")",F13)) -> 2 | K13: =IF(U13=0,"",IF(F13="","",F13)) -> 2 | L13: 0.4 | S13: sim | T13: TRUE | U13: =IF(T13=TRUE,1,0) -> 1 | V13: v | W13: =G28 -> 20 | Y13: =H28 -> 15 | Z13: =K28 -> 50 | AA13: =I28 -> 5 | AC13: =J28 -> 10 | AE13: =F17+F19+F24 -> 9 | AG13: =F14+F23 -> 3
F14: 3 | I14: =IF(F14="","",IF(U14=0,"("&F14&")",F14)) -> 3 | K14: 3 | L14: 1 | N14: =IF(W20>3,"You have selected too many subtests for calculation of a Perceptual Reasoning Scale",IF(W20<3,"You have selected too few subtests for calculation of a Perceptual Reasoning Scale","")) ->  | S14: ds | T14: TRUE | U14: 1 | V14: w
F15: 2 | H15: =IF(F15="","",IF(U15=0,"("&F15&")",F15)) -> 2 | K15: 2 | L15: 0.4 | S15: mr | T15: TRUE | U15: 1 | V15: p | Y15: ss | AB15: ss
F16: 9 | G16: =IF(F16="","",IF(U16=0,"("&F16&")",F16)) -> 9 | K16: 9 | L16: 37 | N16: =IF(W22<2,"You have too few subtest scores for calculation of a Working Memory Scale",IF(W22>2,"You have too many subtest scores for calculation of a Working Memory Scale","")) ->  | S16: voc | T16: TRUE | U16: 1 | V16: s
F17: 2 | I17: =IF(F17="","",IF(U17=0,"("&F17&")",F17)) -> 2 | K17: 2 | L17: 0.4 | S17: ar | T17: TRUE | U17: 1 | V17: v | Z17: S V I | AA17: =IF(U13+U16+U20=3,1,0) -> 1 | AC17: BD MR VP | AE17: =IF(U12+U19+U15=3,1,0) -> 1
F18: 2 | J18: =IF(F18="","",IF(U18=0,"("&F18&")",F18)) -> 2 | K18: 2 | L18: 0.4 | N18: =IF(W19<2,"You have too few subtest scores for calculation of a Processing Speed Scale",IF(W19>2,"You have too many subtest scores for calculation of a Processing Speed Scale","")) ->  | S18: SS | T18: TRUE | U18: 1 | V18: w | Z18: C V I | AA18: =IF(U20+U16+U24=3,2,0) -> 0 | AC18: FW MR VP | AE18: =IF(U23+U15+U19=3,2,0) -> 0
F19: 7 | H19: =IF(F19="","",IF(U19=0,"("&F19&")",F19)) -> 7 | K19: 7 | L19: 16 | S19: VP | T19: TRUE | U19: 1 | V19: p | W19: =U18+U21+U25 -> 2 | X19: psi | Z19: S C I | AA19: =IF(U13+U24+U20=3,3,0) -> 0 | AC19: BD FW VP | AE19: =IF(U12+U19+U23=3,3,0) -> 0
F20: 9 | G20: =IF(F20="","",IF(U20=0,"("&F20&")",F20)) -> 9 | K20: 9 | L20: 37 | S20: Inf | T20: TRUE | U20: 1 | V20: v | W20: =U12+U15+U19+U23+U26 -> 3 | X20: PRI | Z20: S V C | AA20: =IF(U13+U24+U16=3,4,0) -> 0 | AC20: BD MR FW | AE20: =IF(U12+U23+U15=3,4,0) -> 0
F21: 8 | J21: =IF(F21="","",IF(U21=0,"("&F21&")",F21)) -> 8 | K21: =IF(U21=0,"",IF(F21="","",F21)) -> 8 | L21: 25 | N21: =IF(W23>10,"You have selected too many subtests for inclusion in a Full Scale IQ",IF(W23<10,"You have selected too few subtests for calculation of a Full Scale IQ","")) ->  | S21: cd | T21: TRUE | U21: 1 | V21: s | W21: =U13+U16+U20+U24 -> 3 | X21: verbal | AC21: PC MR VP | AE21: =IF(U15+U26+U19=3,5,0) -> 0
I22: =IF(F22="","",IF(U22=0,"("&F22&")",F22)) ->  | S22: lns | T22: FALSE | U22: 0 | V22: p | W22: =U14+U17+U22 -> 2 | X22: wm | AC22: BD PC VP | AE22: =IF(U12+U26+U19=3,6,0) -> 0
H23: =IF(F23="","",IF(U23=0,"("&F23&")",F23)) ->  | N23: =IF(AND(W21=3,AA24>0),"The VCI is based upon the following subtests: "&CHOOSE(AA24,Z17,Z18,Z19,Z20),IF(AA24=0,"The combination of VCI subtests chosen cannot be used to compute an IQ.","")) -> The VCI is based upon the following subtests: S V I | S23: fw | T23: FALSE | U23: =IF(T23=TRUE,1,0) -> 0 | V23: s | W23: =SUM(U12:U26) -> 10 | X23: total | AC23: BD MR PC | AE23: =IF(U12+U26+U15=3,7,0) -> 0
G24: =IF(F24="","",IF(U24=0,"("&F24&")",F24)) ->  | S24: comp | T24: FALSE | U24: 0 | V24: v | Z24: v combo | AA24: =SUM(AA17:AA20) -> 1 | AD24: p combo | AE24: =SUM(AE17:AE23) -> 1 | AF24: cd or ss | AG24: =IF(U19=1,1,IF(U17=1,2,0)) -> 1
F25: 11 | J25: =IF(F25="","",IF(U25=0,"("&F25&")",F25)) -> (11) | L25: 63 | N25: =IF(AND(W20=3,AE24>0),"The PRI is based upon the following subtests: "&CHOOSE(AE24,AC17,AC18,AC19,AC20,AC21,AC22,AC23),IF(AE24=0,"The combination of PRI subtests chosen cannot be used to compute an IQ.","")) -> The PRI is based upon the following subtests: BD MR VP | S25: ca | T25: FALSE | U25: 0 | V25: w
H26: =IF(F26="","",IF(U26=0,"("&F26&")",F26)) ->  | S26: pcm | T26: FALSE | U26: 0 | V26: v
F28: Sums of Scaled Scores | G28: =SUM(G13:G26) -> 20 | H28: =SUM(H12:H24) -> 15 | I28: =SUM(I14:I25) -> 5 | J28: =SUM(J17:J25) -> 10 | K28: =SUM(K12:K26) -> 50 | N28: *16 - 69 only
B30: Process Scores | D30: Block Design No Time Bonus | F30: 14 | L30: =IF(F30="","",LOOKUP(F30,$D$344:$W$344,$D$345:$W$345)) -> 91
D31: Digit Span Forward | F31: 18 | L31: =IF(F31="","",LOOKUP(F31,$D$344:$W$344,$D$345:$W$345)) -> 99.6
D32: Digit Span Backward | F32: 17 | L32: =IF(F32="","",LOOKUP(F32,$D$344:$W$344,$D$345:$W$345)) -> 99
D33: Digit Span Sequencing | F33: 13 | L33: =IF(F33="","",LOOKUP(F33,$D$344:$W$344,$D$345:$W$345)) -> 84
D34: Longest Digit Forward (raw score) | G34: 9
D35: Longest Digit Backward (raw score) | G35: 8
D36: Longest Digit Sequencing (raw score) | G36: 7
D37: Longest Letter-Number (raw score) | G37: 8 | U37: s | V37: =IF(F13="","",1) -> 1 | W37: =IF(F13="","",F13) -> 2 | X37: bd | Y37: =IF(F12="","",1) -> 1 | Z37: =IF(F12="","",F12) -> 6 | AA37: cd | AB37: =IF(F21="","",1) -> 1 | AC37: =IF(F21="","",F21) -> 8 | AD37: ds | AE37: =IF(F14="","",1) -> 1 | AF37: =IF(F14="","",F14) -> 3
A38: WAIS-IV Interpretive Worksheet | U38: v | V38: =IF(F16="","",1) -> 1 | W38: =IF(F16="","",F16) -> 9 | X38: mr | Y38: =IF(F15="","",1) -> 1 | Z38: =IF(F15="","",F15) -> 2 | AA38: ss | AB38: =IF(F18="","",1) -> 1 | AC38: =IF(F18="","",F18) -> 2 | AD38: ar | AE38: =IF(F17="","",1) -> 1 | AF38: =IF(F17="","",F17) -> 2
B39: Evaluate the Full Scale IQ | U39: i | V39: =IF(F20="","",1) -> 1 | W39: =IF(F20="","",F20) -> 9 | X39: vp | Y39: =IF(F19="","",1) -> 1 | Z39: =IF(F19="","",F19) -> 7 | AA39: ca | AB39: =IF(F25="","",1) -> 1 | AC39: =IF(F25="","",F25) -> 11 | AD39: lns | AE39: =IF(F22="","",1) ->  | AF39: =IF(F22="","",F22) -> 
X40: fw | Y40: =IF(F23="","",1) ->  | Z40: =IF(F23="","",F23) -> 
AB41: =SUM(AB37:AB38) -> 2 | AE41: =SUM(AE37:AE38) -> 2
H43: Obtained | J43: Percentile | L43: Confidence | N43: Narrative Category | U43: c | V43: =IF(F24="","",1) ->  | W43: =IF(F24="","",F24) ->  | X43: pcm | Y43: =IF(F26="","",1) ->  | Z43: =IF(F26="","",F26) ->  | AB43: =SUM(AB37:AB39) -> 3 | AC43: =SUM(AC37:AC39) -> 21 | AE43: =SUM(AE37:AE39) -> 2 | AF43: =SUM(AF37:AF39) -> 5
F44: SS Totals | H44: IQ | J44: Rank | L44: Bands
T45: 1 | W45: =SUM(W37:W44) -> 20 | Z45: =SUM(Z37:Z44) -> 15
D46: Verbal Comprehension | F46: =IF(W21=3,"("&W13&")","") -> (20) | H46: 116 | J46: =IF(H46="","",LOOKUP(H46,B338:BG339)) -> 86 | L46: =IF(H46="","",X46&" - "&Y46) -> 111 - 120 | N46: =IF(H46="","",LOOKUP((LOOKUP(H46,D414:O415)+H46),$D$412:$J$413)&" to "&LOOKUP((LOOKUP(H46,D414:O414,D416:O416)+H46),$D$412:$J$413)) -> Average to Superior | T46: 0.96 | U46: =100+T46*(H46-100) -> 115.36 | V46: =15*T46*SQRT((1-T46)) -> 2.88 | W46: =IF(T45=1,V46*1.65,V46*1.96) -> 4.752 | X46: =ROUND(U46-W46,0) -> 111 | Y46: =ROUND(U46+W46,0) -> 120 | AD46: =SUM(Y37:Y44) -> 3 | AV46: =D46 -> Verbal Comprehension | AW46: =X46 -> 111 | AX46: =H46 -> 116 | AY46: =Y46 -> 120
D47: Perceptual Reasoning | F47: =IF(W20=3,"("&Y13&")","") -> (15) | H47: 109 | J47: =IF(H47="","",LOOKUP(H47,B338:BG339)) -> 73 | L47: =IF(H47="","",X47&" - "&Y47) -> 103 - 114 | N47: =IF(H47="","",LOOKUP((LOOKUP(H47,D414:O415)+H47),$D$412:$J$413)&" to "&LOOKUP((LOOKUP(H47,D414:O414,D416:O416)+H47),$D$412:$J$413)) -> Average to High Average | T47: 0.95 | U47: =100+T47*(H47-100) -> 108.55 | V47: =15*T47*SQRT((1-T47)) -> 3.186396868 | W47: =IF(T45=1,V47*1.65,V47*1.96) -> 5.257554832 | X47: =ROUND(U47-W47,0) -> 103 | Y47: =ROUND(U47+W47,0) -> 114 | AA47: =SUM(V37:V44) -> 3 | AB47: =SUM(V37:V45) -> 3 | AD47: =SUM(Y37:Y44) -> 3 | AI47: =AB47+AD47+AB43+AE43 -> 11 | AV47: =D47 -> Perceptual Reasoning | AW47: =X47 -> 103 | AX47: =H47 -> 109 | AY47: =Y47 -> 114
D48: Working Memory | F48: =IF(AB43<2,"","("&AA13&")") -> (5) | H48: 122 | J48: =IF(H48="","",LOOKUP(H48,B338:BG339)) -> 93 | L48: =IF(H48="","",X48&" - "&Y48) -> 115 - 126 | N48: =IF(H48="","",LOOKUP((LOOKUP(H48,D414:O415)+H48),$D$412:$J$413)&" to "&LOOKUP((LOOKUP(H48,D414:O414,D416:O416)+H48),$D$412:$J$413)) -> High Average to Superior | T48: 0.94 | U48: =100+T48*(H48-100) -> 120.68 | V48: =15*T48*SQRT((1-T48)) -> 3.453780537 | W48: =IF(T45=1,V48*1.65,V48*1.96) -> 5.698737887 | X48: =ROUND(U48-W48,0) -> 115 | Y48: =ROUND(U48+W48,0) -> 126 | Z48: Vx= | AA48: =W45/AA47 -> 6.666666667 | AB48: =W45/AB47 -> 6.666666667 | AC48: =SUM(W37:W44) -> 20 | AD48: Px= | AE48: =Z45/AD47 -> 5 | AG48: =SUM(W45+Z45+AC43+AF43) -> 61 | AH48: FSx= | AI48: =AG48/AI47 -> 5.545454545 | AK48: vp diff | AL48: =ABS(H46-H47) -> 7 | AV48: =D48 -> Working Memory | AW48: 115 | AX48: =H48 -> 122 | AY48: 126
D49: Processing Speed | F49: =IF(AE43<2,"","("&AC13&")") -> (10) | H49: 86 | J49: =IF(H49="","",LOOKUP(H49,B338:BG339)) -> 18 | L49: =IF(H49="","",X49&" - "&Y49) -> 80 - 94 | N49: =IF(H49="","",LOOKUP((LOOKUP(H49,D414:O415)+H49),$D$412:$J$413)&" to "&LOOKUP((LOOKUP(H49,D414:O414,D416:O416)+H49),$D$412:$J$413)) -> Low Average to Average | T49: 0.9 | U49: =100+T49*(H49-100) -> 87.4 | V49: =15*T49*SQRT((1-T49)) -> 4.269074841 | W49: =IF(T45=1,V49*1.65,V49*1.96) -> 7.043973488 | X49: =ROUND(U49-W49,0) -> 80 | Y49: =ROUND(U49+W49,0) -> 94 | Z49: v max | AA49: =MAX(W37:W44) -> 9 | AC49: p max | AD49: =MAX(Z37:Z44) -> 7 | AE49: =IF(AA49=AD49,AA49,IF(AA49>AD49,AA49,AD49)) -> 9 | AL49: =LOOKUP(AL48,D357:AR357,D366:AR366) -> 54 | AV49: =D49 -> Processing Speed | AW49: 80 | AX49: =H49 -> 86 | AY49: 94
D50: Full Scale | F50: =IF(W23=10,"("&Z13&")","") -> (50) | H50: 111 | J50: =IF(H50="","",LOOKUP(H50,B338:BG339)) -> 77 | L50: =IF(H50="","",X50&" - "&Y50) -> 107 - 114 | N50: =IF(H50="","",LOOKUP((LOOKUP(H50,D414:O415)+H50),$D$412:$J$413)&" to "&LOOKUP((LOOKUP(H50,D414:O414,D416:O416)+H50),$D$412:$J$413)) -> Average to High Average | T50: 0.98 | U50: =100+T50*(H50-100) -> 110.78 | V50: =15*T50*SQRT((1-T50)) -> 2.078893937 | W50: =IF(T45=1,V50*1.65,V50*1.96) -> 3.430174996 | X50: =ROUND(U50-W50,0) -> 107 | Y50: =ROUND(U50+W50,0) -> 114 | Z50: v min | AA50: =MIN(W37:W44) -> 2 | AC50: p min | AD50: =MIN(Z37:Z44) -> 2 | AE50: =IF(AA50=AD50,AA50,IF(AA50<AD50,AA50,AD50)) -> 2 | AF50: =AE49-AE50 -> 7 | AV50: =D50 -> Full Scale | AW50: 107 | AX50: =H50 -> 111 | AY50: 114
Z51: diff | AA51: =ABS(AA49-AA50) -> 7 | AC51: diff | AD51: =ABS(AD49-AD50) -> 5 | AF51: fs sc diff | AG51: =AF50 -> 7
Z52: v scat | AA52: =IF(AA47<6,"",IF(AA47=6, LOOKUP(AA51,D357:V357,D358:V358),LOOKUP(AA51,D357:V357,D359:V359))) ->  | AC52: p scat | AD52: =IF(AD47<4,"",LOOKUP(AD51,D357:V357,D360:V360)) ->  | AF52: 11fs scat | AG52: =LOOKUP(AG51,D357:V357,D362:W362) -> 50.9 | AI52: =IF(AI47=14,AE54,IF(AI47=11,AG52,AG53)) -> 50.9
B53: Is the VCI versus PRI Significantly Different? Note: See Table B.1 for standardization frequency | AF53: 1213fs scat | AG53: =LOOKUP(AG51,D357:V357,D363:W363) -> 58
AD54: 14fs scat | AE54: =LOOKUP(AG51,D357:V357,D364:W364) -> 63.8
F55: Significance | L55: Is there a significant difference? | Y55: =IF(H46=H47,0,IF(H46>H47,1,2)) -> 1
D56: ="VCI ("&H46&") vs PRI ("&H47&") Difference" -> VCI (116) vs PRI (109) Difference | F56: (p < .01) | H56: (p < .05) | J56: none | T56: =ABS(H46-H47) -> 7 | U56: =IF(T56=1," point"," points") -> points | Y56: =IF(ABS(H46-H47)>8,1,-1) -> -1
D57: =IF(OR(H46="",H47=""),"",T56&U56) -> 7 points | F57: 12 or more | H57: 9 | J57: 0 - 8 | L57: =IF(OR(H46="",H47=""),"",IF(T56>11, "YES, p = .01", IF(T56<9, "NO","YES, p = .05"))) -> NO | T57: =IF(L57="NO",0,1) -> 0 | V57: Because there is no significant differences between the VCI and PRI, explain the meaning of the scales not being significantly different. | Y57: =SUM(Y55+Y56) -> 0
V58: Because there is a significant difference between the VCI and PRI, interpret the FSIQ with caution. Examine further steps.
D60: =IF(L57="","",IF(T57=0,V57,V58)) -> Because there is no significant differences between the VCI and PRI, explain the meaning of the scales not being significantly different.
B64: Is the VCI versus PRI Difference Abnormally Large? Note: See Table B.2 for standardization frequency
W65: 1 | X65: 2 | Y65: 3 | Z65: 4 | AA65: 5
C66: ="VCI ("&H46&") vs PRI ("&H47&") Difference" -> VCI (116) vs PRI (109) Difference | F66: Size of Difference needed for abnormality | L66: Is Size of Difference Abnormal? | T66: =IF(H46=H47,0,IF(H46>H47,1,2)) -> 1 | U66: =IF(H50>119,5,IF(H50>109,4,IF(H50>89,3,IF(H50>79,2,1)))) -> 4 | V66: 1 | W66: 17 | X66: 16 | Y66: 16 | Z66: 18 | AA66: 20
C67: =D57&" ("&T67&")" -> 7 points (V > P) | F67: =INDEX(W66:AA67,T66,U66) -> 18 | L67: =IF(D57="","",IF(T56<F67,"NO","YES")) -> NO | T67: =IF(H46=H47,"V = P",IF(H46>H47,"V > P","V < P")) -> V > P | U67: IQ group | V67: 2 | W67: 13 | X67: 15 | Y67: 18 | Z67: 19 | AA67: 20
T69: =IF(L67="NO",0,1) -> 0 | V69: Because no abnormal differences are found, determine if the noted differences are interpretable.
D70: =IF(L67="","",IF(T69=0,V69,V70)) -> Because no abnormal differences are found, determine if the noted differences are interpretable. | V70: Because an abnormal difference was found, explain the abnormally large VCI vs PRI difference.
B74: Are the VCI and PRI composites interpretable? Note: See Table B.6 for standardization frequency
D76: A. Is there abnormal VCI scatter? | M76: Is there abnormal scatter?
D77: Verbal Subtests High-Low Difference | I77: Normal | K77: Abnormal
D78: =AA51&U78&" between "&AA47&" subtests" -> 7 points between 3 subtests | I78: 0 - 5 | K78: 6 or more | M78: =IF(AA51>5,"YES","NO") -> YES | U78: =IF(AA51=1," point"," points") -> points
D81: B. Is there abnormal PRI scatter? | M81: Is there abnormal scatter?
D82: Perceptual Reasoning Subtests High-Low Difference | I82: Normal | K82: Abnormal | U82: =IF(M78="NO",0,1) -> 1
D83: =AD51&U84&" between "&AD47&" subtests" -> 5 points between 3 subtests | I83: =IF(AD47<5,"0 - 6","0 - 7") -> 0 - 6 | K83: =IF(AD47<5,"7 or more","8 or more") -> 7 or more | M83: =IF(AND(AD47<5,AD51>6),"YES",IF(AND(AD47=5,AD51>7),"YES","NO")) -> NO | U83: =IF(M83="NO",0,1) -> 0 | V83: =U82+U83 -> 1 | W83: Because each answers to A and B was NO, the VCI versus PRI discrepancy is interpretable.
U84: =IF(AD51=1," point"," points") -> points | W84: Because an answer to either A or B was YES, the VCI versus PRI discrepancy differences should probably not be interpreted.
D86: =IF(V83=0,W83,W84) -> Because an answer to either A or B was YES, the VCI versus PRI discrepancy differences should probably not be interpreted.
B90: Determine if the Working Memory Index is interpretable. Note: See Table B.4 for standardization frequency
D92: A. Is there a significant difference between the WMI subtests? | M92: Is there abnormal scatter?
D93: =IF(AB32=1,"No Index Computed","WMI Subtests [ DS ("&F14&") AR ("&F17&") ] Difference ") -> WMI Subtests [ DS (3) AR (2) ] Difference | I93: Normal | K93: Abnormal | U93: =ABS(AF37-AF38) -> 1
D94: =U93&U95 -> 1 point | I94: 0 - 3 | K94: 4 or more | M94: =IF(AE41<>2,"",IF(U93>4,"YES","NO")) -> NO | U94: =IF(M94="NO",0,1) -> 0
U95: =IF(U93=1," point"," points") -> point
D97: =IF(AE41<>2,"No index computed",IF(U94=0,"The WMI may be interpreted.","Because of subtest differences in the WMI, do not interpret WMI.")) -> The WMI may be interpreted.
B100: Determine if the Processing Speed Index is interpretable. Note: See Table B.4 for standardization frequency
D102: A. Is there a significant difference between the PSI subtests? | M102: Is there abnormal scatter?
D103: =IF(AB43=1,"No Index Computed","PSI Subtests [ SS ("&F18&") Cd ("&F21&") ] Difference ") -> PSI Subtests [ SS (2) Cd (8) ] Difference | I103: Normal | K103: Abnormal | U103: =ABS(AC37-AC38) -> 6
D104: =U103&U105 -> 6 points | I104: 0 - 3 | K104: 4 or more | M104: =IF(AB41<>2,"",IF(U103>3,"YES","NO")) -> YES | U104: =IF(M104="NO",0,1) -> 1
U105: =IF(U103=1," point"," points") -> points
D107: =IF(AB41<>2,"No index computed",IF(U104=0,"The PSI may be interpreted.","Because of subtest differences in the PSI, do not interpret PSI.")) -> Because of subtest differences in the PSI, do not interpret PSI.
AH108: core mean
B110: Interpret significant strengths and weaknesses. | AE110: =IF(sim="","",IF(VOC="","",IF(IN="","",1))) -> 1 | AF110: =IF(sim="","",IF(VOC="","",IF(IN="","",(sim+VOC+IN)))) -> 20 | AG110: =IF(sim="","",IF(VOC="","",IF(IN="","",3))) -> 3 | AH110: =IF(AE110=1,(AF110/AG110),"") -> 6.666666667
I111: Verbal Comprehension mean | K111: =IF(T113=1,AH110,AA48) -> 6.666666667 | L111: =" based on "&IF(T113=1,AG110,AA47)&" subtests" -> based on 3 subtests | AE111: =IF(bd="","",IF(MR="","",1)) -> 1 | AF111: =IF(bd="","",IF(MR="","",IF(VP="","",(bd+MR+VP)))) -> 15 | AG111: =IF(bd="","",IF(MR="","",IF(VP="","",3))) -> 3 | AH111: =IF(AE111=1,(AF111/AG111),"") -> 5
I112: Perceptual Reasoning mean | K112: =IF(T113=1,AH111,AE48) -> 5 | L112: =" based on "&IF(T113=1,AG111,AD47)&" subtests" -> based on 3 subtests | AE112: =IF(DS="","",IF(AR="","",1)) -> 1 | AF112: =IF(DS="","",IF(AR="","",(DS+AR))) -> 5 | AG112: =IF(DS="","",IF(AR="","",2)) -> 2 | AH112: =IF(AE112=1,(AF112/AG112),"") -> 2.5
I113: Full Scale mean | K113: =IF(T113=1,AH114,AI48) -> 5.545454545 | L113: =" based on "&IF(T113=1,AG114,AI47)&" subtests" -> based on 11 subtests | T113: 2 | AE113: =IF(SS="","",IF(CD="","",1)) -> 1 | AF113: =IF(SS="","",IF(CD="","",(SS+CD))) -> 10 | AG113: =IF(SS="","",IF(CD="","",2)) -> 2 | AH113: =IF(AE113=1,(AF113/AG113),"") -> 5
AE114: =SUM(AE110:AE113) -> 4 | AF114: =SUM(AF110:AF113) -> 50 | AG114: =SUM(AG110:AG113) -> 10 | AH114: =IF(AE114=4,(AF114/AG114),"") -> 5
H115: Verbal / Perceptual Statistics | N115: Full Scale Statistics
F116: ss | I116: Crit. Value | K116: Deviation | N116: Crit. Value | P116: Deviation | U116: >CR | V116: sign | W116: >CV | X116: sign | AD116: .05 15
B117: Verbal | D117: Similarities | F117: =IF(F13="","",F13) -> 2 | I117: 1.91 | K117: =IF(F117="","",(F117-$K$111)) -> -4.666666667 | L117: =IF(F117="","",IF(SUM(U117+V117)=4,"s",IF(SUM(U117+V117)=2,"w",""))) -> w | N117: =IF(compmean=1,2.82,3.09) -> 3.09 | P117: =IF(N117="","",($F117-K$113)) -> -3.545454545 | Q117: =IF(F117="","",IF(SUM(W117+X117)=4,"s",IF(SUM(W117+X117)=2,"w",""))) -> w | U117: =IF(ABS(K117)>=I117,3,0) -> 3 | V117: =SIGN(K117) -> -1 | W117: =IF(ABS(P117)>=N117,3,0) -> 3 | X117: =SIGN(P117) -> -1 | AA117: =IF(W117=0,0,1) -> 1 | AB117: =Q117 -> w | AC117: Block Design | AD117: 3.087494259
D118: Vocabulary | F118: =IF(F16="","",F16) -> 9 | I118: 1.58 | K118: =IF(F118="","",(F118-$K$111)) -> 2.333333333 | L118: =IF(F118="","",IF(SUM(U118+V118)=4,"s",IF(SUM(U118+V118)=2,"w",""))) -> s | N118: =IF(compmean=1,2.03,2.18) -> 2.18 | P118: =IF(N118="","",($F118-K$113)) -> 3.454545455 | Q118: =IF(F118="","",IF(SUM(W118+X118)=4,"s",IF(SUM(W118+X118)=2,"w",""))) -> s | U118: =IF(ABS(K118)>=I118,3,0) -> 3 | V118: 1 | W118: =IF(ABS(P118)>=N118,3,0) -> 3 | X118: =SIGN(P118) -> 1 | AA118: =IF(W118=0,0,1) -> 1 | AB118: =Q118 -> s | AC118: Similarities | AD118: 3.087494259
D119: Information | F119: =IF(F20="","",F20) -> 9 | I119: 1.64 | K119: =IF(F119="","",(F119-$K$111)) -> 2.333333333 | L119: =IF(F119="","",IF(SUM(U119+V119)=4,"s",IF(SUM(U119+V119)=2,"w",""))) -> s | N119: =IF(compmean=1,2.19,2.33) -> 2.33 | P119: =IF(N119="","",($F119-K$113)) -> 3.454545455 | Q119: =IF(F119="","",IF(SUM(W119+X119)=4,"s",IF(SUM(W119+X119)=2,"w",""))) -> s | U119: 3 | V119: 1 | W119: 3 | X119: 1 | AA119: 1 | AB119: =Q119 -> s | AC119: Digit Span | AD119: 2.330706331 | AF119: =LOOKUP(#REF!,R369:W369,R370:W370) ->  | AG119: =LOOKUP(#REF!,R371:W371,R372:W372) ->  | AH119: =LOOKUP(#REF!,R373:W373,R374:W374) ->  | AI119: =LOOKUP(#REF!,R375:W375,R376:W376) ->  | AJ119: =LOOKUP(#REF!,R377:W377,R378:W378) ->  | AK119: =CHOOSE(AJ53,AF119,AG119,AH119,AI119,AJ119) -> 
D120: Comprehension | F120: =IF(F24="","",F24) ->  | I120: =IF(OR(F120="",T113=1),"",IF($AB$47<3,"",2)) ->  | K120: =IF(OR(F120="",T113=1),"",F120-$K$111) ->  | L120: =IF(OR(F120="",T113=1),"",IF(SUM(U120+V120)=4,"s",IF(SUM(U120+V120)=2,"w",""))) ->  | N120: =IF(OR(F120="",compmean=1),"",IF($AI$47<7,"",3.09)) ->  | P120: =IF(OR(F120="",T113=1),"",($F120-K$113)) ->  | Q120: =IF(OR(F120="",T113=1),"",IF(SUM(W120+X120)=4,"s",IF(SUM(W120+X120)=2,"w",""))) ->  | AB120: =Q120 ->  | AC120: Matrix Reasoning | AD120: 2.735398764 | AF120: =LOOKUP(#REF!,D369:I369,D370:I370) ->  | AG120: =LOOKUP(#REF!,D371:I371,D372:I372) ->  | AH120: =LOOKUP(#REF!,D373:I373,D374:I374) ->  | AI120: =LOOKUP(#REF!,D375:I375,D376:I376) ->  | AJ120: =LOOKUP(#REF!,D377:I377,D378:I378) ->  | AK120: =CHOOSE(AJ53,AF120,AG120,AH120,AI120,AJ120) -> 
AC121: Vocabulary | AD121: 2.179171219 | AF121: =LOOKUP(#REF!,K369:P369,K370:P370) ->  | AG121: =LOOKUP(#REF!,K371:P371,K372:P372) ->  | AH121: =LOOKUP(#REF!,K373:P373,K374:P374) ->  | AI121: =LOOKUP(#REF!,K375:P375,K376:P376) ->  | AJ121: =LOOKUP(#REF!,K377:P377,K378:P378) ->  | AK121: =CHOOSE(AJ53,AF121,AG121,AH121,AI121,AJ121) -> 
D122: Block Design | F122: =IF(F12="","",F12) -> 6 | I122: 2.05 | K122: =IF(F122="","",(F122-$K$112)) -> 1 | L122: =IF(F122="","",IF(SUM(U122+V122)=4,"s",IF(SUM(U122+V122)=2,"w",""))) ->  | N122: =IF(compmean=1,2.85,3.09) -> 3.09 | P122: =IF(N122="","",($F122-K$113)) -> 0.4545454545 | Q122: =IF(F122="","",IF(SUM(W122+X122)=4,"s",IF(SUM(W122+X122)=2,"w",""))) ->  | U122: 0 | V122: 1 | W122: 0 | X122: 1 | AA122: 0 | AB122: =Q122 ->  | AC122: Arithmetic | AD122: 2.974763184
B123: Perceptual | D123: Matrix Reasoning | F123: =IF(F15="","",F15) -> 2 | I123: 1.92 | K123: =IF(F123="","",(F123-$K$112)) -> -3 | L123: =IF(F123="","",IF(SUM(U123+V123)=4,"s",IF(SUM(U123+V123)=2,"w",""))) -> w | N123: =IF(compmean=1,2.54,2.74) -> 2.74 | P123: =IF(N123="","",($F123-K$113)) -> -3.545454545 | Q123: =IF(F123="","",IF(SUM(W123+X123)=4,"s",IF(SUM(W123+X123)=2,"w",""))) -> w | U123: 3 | V123: -1 | W123: 3 | X123: -1 | AA123: 1 | AB123: =Q123 -> w | AC123: Symbols Search | AD123: 3.692295979
D124: Visual Puzzles | F124: =IF(F19="","",F19) -> 7 | I124: 1.99 | K124: =IF(F124="","",(F124-$K$112)) -> 2 | L124: =IF(F124="","",IF(SUM(U124+V124)=4,"s",IF(SUM(U124+V124)=2,"w",""))) -> s | N124: =IF(compmean=1,2.71,2.86) -> 2.86 | P124: =IF(N124="","",($F124-K$113)) -> 1.454545455 | Q124: =IF(F124="","",IF(SUM(W124+X124)=4,"s",IF(SUM(W124+X124)=2,"w",""))) ->  | U124: 3 | V124: 1 | W124: 0 | X124: 1 | AA124: 0 | AB124: =Q124 ->  | AC124: Visual Puzzles | AD124: 2.857588354
D125: Figure Weights | F125: =IF(F23="","",F23) ->  | I125: =IF(OR(F125="",T113=1),"",IF($AB$47<3,"",2)) ->  | K125: =IF(OR(F125="",T113=1),"",(F125-$K$112)) ->  | L125: =IF(OR(F125="",T113=1),"",IF(SUM(U125+V125)=4,"s",IF(SUM(U125+V125)=2,"w",""))) ->  | N125: =IF(OR(F125="",T113=1),"",IF($AI$47<7,"",2.74)) ->  | P125: =IF(OR(F125="",T113=1),"",($F125-K$113)) ->  | Q125: =IF(OR(F125="",T113=1),"",IF(SUM(W125+X125)=4,"s",IF(SUM(W125+X125)=2,"w",""))) ->  | AB125: =Q125 ->  | AC125: Information | AD125: 2.330706331
D126: Picture Completion | F126: =IF(F26="","",F26) ->  | I126: =IF(OR(F126="",T113=1),"",IF($AB$47<3,"",2)) ->  | K126: =IF(OR(F126="",T113=1),"",(F126-$K$112)) ->  | L126: =IF(OR(F126="",T113=1),"",IF(SUM(U126+V126)=4,"s",IF(SUM(U126+V126)=2,"w",""))) ->  | N126: =IF(OR(F126="",T113=1),"",IF($AI$47<7,"",3.4)) ->  | P126: =IF(OR(F126="",T113=1),"",($F126-K$113)) ->  | Q126: =IF(OR(F126="",T113=1),"",IF(SUM(W126+X126)=4,"s",IF(SUM(W126+X126)=2,"w",""))) ->  | AB126: =Q126 ->  | AC126: Coding | AD126: 3.196251805
AB127: =Q129 -> w | AC127: Letter-Number Sequence | AD127: 2.974763184
B128: WM | D128: Digit Span | F128: =IF(F14="","",F14) -> 3 | N128: =IF(compmean=1,2.22,2.33) -> 2.33 | P128: =IF(N128="","",($F128-K$113)) -> -2.545454545 | Q128: =IF(F128="","",IF(SUM(W128+X128)=4,"s",IF(SUM(W128+X128)=2,"w",""))) -> w | W128: 3 | X128: -1 | AA128: =IF(W128=0,0,1) -> 1 | AC128: Figure Weights | AD128: 2.735398764
D129: Arithmetic | F129: =IF(F17="","",F17) -> 2 | N129: =IF(compmean=1,2.73,2.97) -> 2.97 | P129: =IF(N129="","",($F129-K$113)) -> -3.545454545 | Q129: w | W129: 3 | X129: -1 | AA129: =IF(W129=0,0,1) -> 1 | AB129: =Q130 ->  | AC129: Comprehension | AD129: 3.087494259
D130: Letter-Number Sequence | F130: =IF(F22="","",F22) ->  | L130: =IF(F130="","",IF(SUM(U129+V129)=4,"s",IF(SUM(U129+V129)=2,"w",""))) ->  | N130: =IF(OR(F130="",T113=1),"",IF($AI$47<7,"",2.97)) ->  | P130: =IF(OR(F130="",T113=1),"",($F130-K$113)) ->  | Q130: =IF(OR(F130="",T113=1),"",IF(SUM(W130+X130)=4,"s",IF(SUM(W130+X130)=2,"w",""))) ->  | AC130: Cancellation | AD130: 3.960210095
AC131: Picture Completion | AD131: 3.403356461
B132: Pr. Spd. | D132: Symbol Search | F132: =IF(F18="","",F18) -> 2 | N132: =IF(F132="","",IF(compmean=1,3.42,3.69)) -> 3.69 | P132: =IF(N132="","",($F132-K$113)) -> -3.545454545 | W132: 0 | X132: -1 | AA132: 0
D133: Coding | F133: =IF(F21="","",F21) -> 8 | N133: =IF(compmean=1,2.97,3.2) -> 3.2 | P133: =IF(N133="","",($F133-K$113)) -> 2.454545455 | W133: 0 | X133: 1 | AA133: =SUM(AA117:AA123) -> 
D134: Cancellation | F134: =IF(F25="","",F25) -> 11 | N134: =IF(OR(F134="",T113=1),"",IF($AI$47<7,"",3.96)) -> 3.96 | P134: =IF(OR(F134="",T113=1),"",($F134-K$113)) -> 5.454545455 | Q134: =IF(OR(F134="",T113=1),"",IF(SUM(W134+X134)=4,"s",IF(SUM(W134+X134)=2,"w",""))) -> s | W134: 3 | X134: 1
AA135: =SUM(AA124:AA132) ->  | AC135: I | AD135: Ds | AE135: V | AF135: A | AG135: C | AH135: S | AI135: PC | AJ135: PA | AK135: BD | AL135: OA | AM135: Dsm
B136: Compare relevant subtest groupings (.05 level of significance)
C138: ="Matrix Reasoning ("&MR&") "&V138&" Block Design ("&bd&")" -> Matrix Reasoning (2) < Block Design (6) | K138: =IF(OR(F123="",F122=""),"",W138&" point "&X138&" difference") -> 4 point significant difference | T138: mr/bd | U138: =IF(F123=F122,1,IF(F123>F122,2,3)) -> 3 | V138: =CHOOSE(U138,"=",">","<") -> < | W138: =ABS(F122-F123) -> 4 | X138: =IF(W138>2,"significant","nonsignificant") -> significant
C140: ="Matrix Reasoning ("&MR&") "&V140&" Figure Weights ("&FW&")" -> Matrix Reasoning (2) < Figure Weights () | K140: =IF(OR(F125="",F124=""),"",W140&" point "&X140&" difference") ->  | T140: mr/fw | U140: =IF(F123=F125,1,IF(F123>F125,2,3)) -> 3 | V140: =CHOOSE(U140,"=",">","<") -> < | W140: =ABS(F123-F125) ->  | X140: =IF(W140>2,"significant","nonsignificant") -> 
C142: ="Block Design ("&bd&") "&V142&" Visual Puzzles ("&VP&")" -> Block Design (6) < Visual Puzzles (7) | K142: =IF(OR(F124="",F122=""),"",W142&" point "&X142&" difference") -> 1 point nonsignificant difference | T142: BD/VP | U142: =IF(F122=F124,1,IF(F122>F124,2,3)) -> 3 | V142: =CHOOSE(U142,"=",">","<") -> < | W142: =ABS(F122-F124) -> 1 | X142: =IF(W142>2,"significant","nonsignificant") -> nonsignificant
C144: ="Information ("&IN&") "&V144&" Comprehension ("&COMP&")" -> Information (9) < Comprehension () | K144: =IF(OR(F120="",F119=""),"",W144&" point "&X144&" difference") ->  | T144: i/c | U144: =IF(F119=F120,1,IF(F119>F120,2,3)) -> 3 | V144: =CHOOSE(U144,"=",">","<") -> < | W144: =ABS(F120-F119) ->  | X144: =IF(W144>3,"significant","nonsignificant") -> 
C146: ="Digit Span ("&DS&") "&V146&" Arithmetic ("&AR&")" -> Digit Span (3) > Arithmetic (2) | K146: =IF(OR(F128="",F130=""),"",W146&" point "&X146&" difference") ->  | T146: ds/a | U146: =IF(F128=F129,1,IF(F128>F129,2,3)) -> 2 | V146: =CHOOSE(U146,"=",">","<") -> > | W146: =ABS(F128-F130) ->  | X146: =IF(W146>2,"significant","nonsignificant") -> 
C148: ="Digit Span ("&DS&") "&V148&" Letter Number Sequence ("&lns&")" -> Digit Span (3) < Letter Number Sequence () | K148: =IF(OR(F128="",F129=""),"",W148&" point "&X148&" difference") -> 1 point nonsignificant difference | T148: DS/lns | U148: =IF(F128=F130,1,IF(F128>F130,2,3)) -> 3 | V148: =CHOOSE(U148,"=",">","<") -> < | W148: =ABS(F128-F129) -> 1 | X148: =IF(W148>2,"significant","nonsignificant") -> nonsignificant
C150: ="Arithmetic ("&AR&") "&V150&" Letter Number Sequence ("&lns&")" -> Arithmetic (2) < Letter Number Sequence () | K150: =IF(OR(F129="",F130=""),"",W150&" point "&X150&" difference") ->  | T150: a/lns | U150: =IF(F129=F130,1,IF(F129>F130,2,3)) -> 3 | V150: =CHOOSE(U150,"=",">","<") -> < | W150: =ABS(F130-F129) ->  | X150: =IF(W150>2,"significant","nonsignificant") -> 
K151: =IF(OR(F129="",F131=""),"",#REF!&" point "&#REF!&" difference") -> 
C152: ="Coding ("&CD&") "&V152&" Symbol Search ("&SS&")" -> Coding (8) > Symbol Search (2) | K152: =IF(OR(F132="",F133=""),"",W152&" point "&X152&" difference") -> 6 point significant difference | T152: cd/ss | U152: =IF(F133=F132,1,IF(F133>F132,2,3)) -> 2 | V152: =CHOOSE(U152,"=",">","<") -> > | W152: =ABS(F132-F133) -> 6 | X152: =IF(W152>3,"significant","nonsignificant") -> significant
C154: ="Coding ("&CD&") "&V154&" Cancellation ("&CA&")" -> Coding (8) < Cancellation (11) | K154: =IF(OR(F132="",F134=""),"",W154&" point "&X154&" difference") -> 9 point significant difference | T154: cd/ca | U154: =IF(F133=F134,1,IF(F133>F134,2,3)) -> 3 | V154: =CHOOSE(U154,"=",">","<") -> < | W154: =ABS(F132-F134) -> 9 | X154: =IF(W154>3,"significant","nonsignificant") -> significant
B156: Process comparisons (.05 level of significance)
C158: ="Block Design ("&F12&") "&V158&" Block Design No Time Bonus ("&F30&")" -> Block Design (6) < Block Design No Time Bonus (14) | K158: =IF(OR(F12="",F30=""),"",W158&" point "&X158&" difference") -> 8 point significant difference | T158: bd/bdnt | U158: =IF(F12=F30,1,IF(F12>F30,2,3)) -> 3 | V158: =CHOOSE(U158,"=",">","<") -> < | W158: =ABS(F12-F30) -> 8 | X158: =IF(W158>3,"significant","nonsignificant") -> significant
C159: ="Digit Span Forward ("&F31&") "&V159&" Digit Span Backward ("&F32&")" -> Digit Span Forward (18) > Digit Span Backward (17) | K159: =IF(OR(F31="",F32=""),"",W159&" point "&X159&" difference") -> 1 point nonsignificant difference | T159: dsf/dsb | U159: =IF(F31=F32,1,IF(F31>F32,2,3)) -> 2 | V159: > | W159: =ABS(F31-F32) -> 1 | X159: =IF(W159>4,"significant","nonsignificant") -> nonsignificant
C160: ="Digit Span Forward ("&F31&") "&V160&" Digit Span Sequencing ("&F33&")" -> Digit Span Forward (18) > Digit Span Sequencing (13) | K160: =IF(OR(F32="",F33=""),"",W160&" point "&X160&" difference") -> 5 point significant difference | T160: dsf/dss | U160: =IF(F31=F33,1,IF(F31>F33,2,3)) -> 2 | V160: > | W160: =ABS(F31-F33) -> 5 | X160: =IF(W160>4,"significant","nonsignificant") -> significant
C161: ="Digit Span Backward ("&F32&") "&V161&" Digit Span Sequencing ("&F33&")" -> Digit Span Backward (17) > Digit Span Sequencing (13) | K161: =IF(OR(G35="",G36=""),"",W161&" point "&X161&" difference") -> 4 point nonsignificant difference | T161: dsb/dss | U161: =IF(F32=F33,1,IF(F32>F33,2,3)) -> 2 | V161: > | W161: =ABS(F32-F33) -> 4 | X161: =IF(W161>4,"significant","nonsignificant") -> nonsignificant
C162: ="Longest Digit Span Forward ("&G34&") "&V162&" Longest Span Backward ("&G35&")" -> Longest Digit Span Forward (9) > Longest Span Backward (8) | K162: =IF(OR(G34="",G35=""),"",W162&" point "&X162&" difference") -> 1 point nonsignificant difference | T162: ldf/ldb | U162: =IF(G34=G35,1,IF(G34>G35,2,3)) -> 2 | V162: > | W162: =ABS(G34-G35) -> 1 | X162: =IF(W162>3,"significant","nonsignificant") -> nonsignificant
C163: ="Longest Digit Span Forward ("&G34&") "&V163&" Longest Span Sequencing ("&G36&")" -> Longest Digit Span Forward (9) > Longest Span Sequencing (7) | K163: =IF(OR(G34="",G36=""),"",W163&" point "&X163&" difference") -> 2 point nonsignificant difference | T163: ldf/lds | U163: =IF(G34=G36,1,IF(G34>G36,2,3)) -> 2 | V163: > | W163: =ABS(G34-G36) -> 2 | X163: =IF(W163>3,"significant","nonsignificant") -> nonsignificant
C164: ="Longest Digit Span Backward ("&G35&") "&V164&" Longest Span Sequencing ("&G36&")" -> Longest Digit Span Backward (8) > Longest Span Sequencing (7) | K164: =IF(OR(G35="",G36=""),"",W164&" point "&X164&" difference") -> 1 point nonsignificant difference | T164: ldb/lds | U164: =IF(G35=G36,1,IF(G35>G36,2,3)) -> 2 | V164: > | W164: =ABS(G35-G36) -> 1 | X164: =IF(W164>3,"significant","nonsignificant") -> nonsignificant
B166: Examine "Ways to Sort" Tab
B168: WAIS-IV Subtests and Proposed Broad and Narrow Abilities and Cultural and Linguistic Demands
N169: Linguistic Demand | P169: Cultural Loading
F170: Broad Abilities | H170: Narrow Abilities | L170: ss | T170: =F12 -> 6
D171: Verbal Comprehension
D172: Similarities | F172: Gc | H172: Language Development | L172: =IF(sim="","",sim) -> 2 | N172: high | P172: high
H173: Lexical Knowledge
D175: Vocabulary | F175: Gc | H175: Language Development | L175: =IF(VOC="","",VOC) -> 9 | N175: high | P175: high
H176: Lexical Knowledge
D178: Information | F178: Gc | H178: General Information | L178: =IF(IN="","",IN) -> 9 | N178: high | P178: high
D180: Comprehension | F180: Gc | H180: Language Development | L180: =IF(COMP="","",COMP) ->  | N180: high | P180: high
H181: General Information
D184: Perceptual Reasoning | AC184: =IF(ABS(L184)>8,3,0) -> 0 | AE184: =SIGN(L184) -> 0
AC185: =IF(ABS(L185)>10,3,0) -> 0 | AE185: =SIGN(L185) -> 0
D186: Block Design | F186: Gv | H186: Spatial Relations | L186: =IF(bd="","",bd) -> 6 | N186: moderate | P186: low | AC186: =IF(ABS(#REF!)>10,3,0) ->  | AE186: =SIGN(#REF!) -> 
H187: Visualization
AC188: =IF(ABS(M70)>9,3,0) -> 0 | AE188: =SIGN(M70) -> 0
D189: Matrix Reasoning | F189: Gf | H189: Induction | L189: =IF(MR="","",MR) -> 2 | N189: low | P189: low | AC189: =IF(ABS(M71)>10,3,0) -> 0 | AE189: =SIGN(M71) -> 0
AC190: =IF(ABS(M72)>10,3,0) -> 0 | AE190: =SIGN(M72) -> 0
D191: Visual Puzzles | F191: Gv | H191: Vizualization | L191: =IF(VP="","",VP) -> 7 | N191: moderate | P191: moderate | AC191: =IF(ABS(L191)>8,3,0) -> 0 | AE191: =SIGN(L191) -> 1
D193: Figure Weights | F193: Gf | H193: Quantitative Reasoning | L193: =IF(FW="","",FW) ->  | N193: moderate | P193: moderate | AC193: =IF(ABS(L193)>8,3,0) ->  | AE193: =SIGN(L193) -> 
AC194: =IF(ABS(L189)>7,3,0) -> 0 | AE194: =SIGN(L189) -> 1
D195: Picture Completion | F195: Gv | H195: Flexibility of Closure | L195: =IF(PCm="","",PCm) ->  | N195: low | P195: high | AC195: =IF(ABS(#REF!)>8,3,0) ->  | AE195: =SIGN(#REF!) -> 
F196: Gc | H196: General Information
AC197: =IF(ABS(I196-I198)>10.5,3,0) -> 0 | AE197: =SIGN(L196) -> 0
AC198: =IF(ABS(I196-I198)>10.5,3,0) -> 0 | AE198: =SIGN(L198) -> 0
D199: Working Memory
D200: Digit Span | F200: Gsm | H200: Memory Span | L200: =IF(DS="","",DS) -> 3 | N200: moderate | P200: low | AC200: =IF(ABS(J76-L77)>16.5,3,0) -> 0 | AE200: =SIGN(M76) -> 
AC201: =IF(ABS(J76-L77)>16.5,3,0) -> 0 | AE201: =SIGN(M77) -> 0
D202: Arithmetic | F202: Gq | H202: Math Achievement | L202: =IF(AR="","",AR) -> 2 | N202: moderate | P202: moderate | AC202: =IF(ABS(L78-#REF!)>16.5,3,0) ->  | AE202: =SIGN(M78) -> 
F203: Gf | H203: Quantitative Reasoning | AC203: =IF(ABS(L78-#REF!)>16.5,3,0) ->  | AE203: =SIGN(#REF!) -> 
AC204: =IF(ABS(I202-I203)>18,3,0) -> 0 | AE204: =SIGN(L202) -> 1
D205: Letter-Number Sequence | F205: Gsm | H205: Working Memory | L205: =IF(lns="","",lns) ->  | N205: high | P205: low | AC205: =IF(ABS(I202-I203)>18,3,0) -> 0 | AE205: =SIGN(L203) -> 0
AC206: =IF(ABS(#REF!-I207)>16.5,3,0) ->  | AE206: =SIGN(#REF!) -> 
D207: Processing Speed | AC207: =IF(ABS(#REF!-I207)>16.5,3,0) ->  | AE207: =SIGN(L207) -> 0
D208: Symbols Search | F208: Gs | H208: Perceptual Speed | L208: =IF(SS="","",SS) -> 2 | N208: moderate | P208: low | AC208: =IF(ABS(J211-#REF!)>18.5,3,0) ->  | AE208: =SIGN(L211) -> 1
H209: Rate of test taking | AC209: =IF(ABS(J211-#REF!)>18.5,3,0) ->  | AE209: =SIGN(#REF!) -> 
AC210: =IF(ABS(I208-#REF!)>16.5,3,0) ->  | AE210: =SIGN(L208) -> 1
E211: Coding | F211: Gs | H211: Rate of test taking | L211: =IF(CD="","",CD) -> 8 | N211: moderate | P211: low | AC211: =IF(ABS(I208-#REF!)>16.5,3,0) ->  | AE211: =SIGN(M81) -> 
D213: Cancellation | F213: Gs | H213: Perceptual Speed | L213: =IF(CA="","",CA) -> 11 | N213: low | P213: low | AC213: =IF(ABS(L83-J84)>15.5,3,0) -> 0 | AE213: =SIGN(M83) -> 
AC214: =IF(ABS(L83-J84)>15.5,3,0) -> 0 | AE214: 0
D215: Adapted from Appendix A, pp. 445 – 453, The Intelligence Test Desk Reference (ITDR): Gf-Gc Cross-Battery Assessment (McGrew & Flanagan, 1998) and Table 8.3, p. 312, The Wechsler Intelligence Scales and Gf-Gc Theory (Flanagan, McGrew & Ortiz, 2000) | AC215: =IF(ABS(J85-J86)>12.5,3,0) -> 0 | AE215: 0
AC216: =IF(ABS(J85-J86)>12.5,3,0) -> 0 | AE216: 0
AC217: =IF(ABS(J87-J88)>16.5,3,0) -> 0 | AE217: 0
AC218: =IF(ABS(J87-J88)>16.5,3,0) -> 0 | AE218: 0
AC219: =IF(ABS(I219-I220)>15.5,3,0) -> 0 | AE219: =SIGN(L219) -> 0
B220: GAI and Dumont-Willis Index-2 | AC220: =IF(ABS(I219-I220)>15.5,3,0) -> 0 | AE220: 0
AC221: =IF(ABS(I221-I222)>15,3,0) -> 0 | AE221: 0
D222: GAI (VCI + PRI) = | F222: =(1.0660036*V222)+36.039785 -> 73.349911 | H222: =IF(ABS(F222-F223)>=9,"There is a significant difference between the two Indexes.","There is no difference between the two Indexes.") -> There is a significant difference between the two Indexes. | U222: =IF(W21=3,W13) -> 20 | V222: =U222+U223 -> 35 | AC222: =IF(ABS(I221-I222)>15,3,0) -> 0 | AE222: 0
D223: DWI-2 (WMI + PSI) = | F223: =(1.597194*V224)+36.112344 -> 60.070254 | U223: =IF(W20=3,Y13) -> 15 | AC223: =IF(ABS(I223-I224)>17.5,3,0) -> 0 | AE223: 0
U224: =IF(AB43<2,"",AA13) -> 5 | V224: =U224+U225 -> 15 | AC224: =IF(ABS(I223-I224)>17.5,3,0) -> 0 | AE224: 0
B225: The General Ability Index (GAI) is computed from the sum of scaled scores for the VCI and PRI subtests. Unlike the DWI-2 tables, the GAI tables are based directly on the WAIS-IV normative data. | U225: =IF(AE43<2,"",AC13) -> 10
B227: The Dumont-Willis DWI-2 Index is based on the sum of scaled scores for the Digit Span and Arithmetic (WMI) and Symbol Search and Coding (PSI) subtests. It should be computed and considered only when the four WMI and PSI subtest scores are close to one another and substantially separate from the VCI and PRI subtests. In those cases, the GAI and DWI-2 scores may be an efficient alternative means of summarizing the 10 WAIS-IV core subtests, but they must never be confused with normative WAIS-IV factor and IQ scores.
D231: Oral / Verbal | H231: Pictures / Puzzles / Paper
D232: =V235 -> 9.125 | I232: =V236 -> 6
D233: Similarities | F233: =IF(sim="","",sim) -> 2 | I233: Block Design | N233: =IF(bd="","",bd) -> 6 | P233: Higher Level Thinking DWI-1 | T233: =SUM(F233:F237)+SUM(N233:N237) -> 35 | U233: =COUNT(F233:F237)+COUNT(N233:N237) -> 6 | V233: =T233/U233 -> 5.833333333
D234: Vocabulary | F234: =IF(VOC="","",VOC) -> 9 | I234: Matrix Reasoning | N234: =IF(MR="","",MR) -> 2 | T234: =SUM(F241:F246)+SUM(N241:N246) -> 74 | U234: =COUNT(F241:F246)+COUNT(N241:N246) -> 8 | V234: =T234/U234 -> 9.25
D235: Information | F235: =IF(IN="","",IN) -> 9 | I235: Visual Puzzles | N235: =IF(VP="","",VP) -> 7 | T235: =SUM(F233:F237)+SUM(F241:F246) -> 73 | U235: =COUNT(F233:F237)+COUNT(F241:F246) -> 8 | V235: =T235/U235 -> 9.125
D236: Comprehension | F236: =IF(COMP="","",COMP) ->  | I236: Figure Weights | N236: =IF(FW="","",FW) ->  | P236: =V233 -> 5.833333333 | T236: =SUM(N233:N237)+SUM(N241:N246) -> 36 | U236: =COUNT(N233:N237)+COUNT(N241:N246) -> 6 | V236: =T236/U236 -> 6
I237: Picture Completion | N237: =IF(PCm="","",PCm) -> 
D241: Digit Span | F241: =IF(DS="","",DS) -> 3 | I241: Symbol Search | N241: =IF(SS="","",SS) -> 2 | P241: Processing DWI-2
D242: Arithmetic | F242: =IF(AR="","",AR) -> 2 | I242: Coding | N242: =IF(CD="","",CD) -> 8
D243: Letter-Number Sequence | F243: =IF(lns="","",lns) ->  | I243: Cancellation | N243: =IF(CA="","",CA) -> 11
D244: DS Forward | F244: =IF(dsf="","",dsf) -> 18
D245: DS Backward | F245: =IF(dsb="","",dsb) -> 17 | P245: =V234 -> 9.25
D246: DS Sequencing | F246: =IF(dssq="","",dssq) -> 13
D250: Substitution possibilities:
D251: ="VCI = "&vci -> VCI = 116
D252: CO,VC,IN | E252: 0.96 | G252: =IF(COMP="","",IF(VOC="","",IF(IN="","",1.86*(COMP+VOC+IN)+44.3))) -> 
D253: SI,CO,IN | E253: 0.95 | G253: =IF(COMP="","",IF(sim="","",IF(IN="","",1.89*(COMP+sim+IN)+43.4))) ->  | U253: Block Design | V253: =bd -> 6
D254: SI,VC,CO | E254: 0.96 | G254: =IF(COMP="","",IF(VOC="","",IF(sim="","",1.84*(COMP+VOC+sim)+44.8))) ->  | U254: Similarities | V254: =sim -> 2
D255: ="PRI = "&poi -> PRI = 109 | U255: Digit Span | V255: =DS -> 3
... 81 more rows

Sheet Shares Abilities
B2: The following uses separate Verbal and Perceptual values unless you specify the Full Scale by typing "F" here:
D4: Verbal | H4: Perceptual Reasoning | M4: Working Memory | P4: Processing Speed
D5: S | E5: V | F5: I | G5: C | H5: BD | I5: MR | J5: VP | K5: FW | L5: PCmp | M5: Ds | N5: A | O5: Ln | P5: SS | Q5: Cd | R5: CA
C6: Deviation from mean: | D6: =IF(O2="F",'WAIS-IV'!P117,'WAIS-IV'!K117) -> -4.666666667 | E6: =IF(O2="F",'WAIS-IV'!P118,'WAIS-IV'!K118) -> 2.333333333 | F6: =IF(O2="F",'WAIS-IV'!P119,'WAIS-IV'!K119) -> 2.333333333 | G6: =IF(O2="F",'WAIS-IV'!P120,'WAIS-IV'!K120) ->  | H6: =IF(O2="F",'WAIS-IV'!P122,'WAIS-IV'!K122) -> 1 | I6: =IF(O2="F",'WAIS-IV'!P123,'WAIS-IV'!K123) -> -3 | J6: =IF(O2="F",'WAIS-IV'!P124,'WAIS-IV'!K124) -> 2 | K6: =IF(O2="F",'WAIS-IV'!P125,'WAIS-IV'!K125) ->  | L6: =IF(O2="F",'WAIS-IV'!P126,'WAIS-IV'!K126) ->  | M6: ='WAIS-IV'!P128 -> -2.545454545 | N6: ='WAIS-IV'!P129 -> -3.545454545 | O6: ='WAIS-IV'!P130 ->  | P6: ='WAIS-IV'!P132 -> -3.545454545 | Q6: ='WAIS-IV'!P133 -> 2.454545455 | R6: ='WAIS-IV'!P134 -> 5.454545455
C7: Strength or Weakness: | D7: =IF(O2="F",'WAIS-IV'!Q117,'WAIS-IV'!L117) -> w | E7: =IF(O2="F",'WAIS-IV'!Q118,'WAIS-IV'!L118) -> s | F7: =IF(O2="F",'WAIS-IV'!Q120,'WAIS-IV'!L120) ->  | G7: =IF(O2="F",'WAIS-IV'!Q119,'WAIS-IV'!L119) -> s | H7: =IF(O2="F",'WAIS-IV'!Q122,'WAIS-IV'!L122) ->  | I7: =IF(O2="F",'WAIS-IV'!Q123,'WAIS-IV'!L123) -> w | J7: =IF(O2="F",'WAIS-IV'!Q124,'WAIS-IV'!L124) -> s | K7: =IF(O2="F",'WAIS-IV'!Q125,'WAIS-IV'!L125) ->  | L7: =IF(O2="F",'WAIS-IV'!Q126,'WAIS-IV'!L126) ->  | M7: ='WAIS-IV'!Q128 -> w | N7: ='WAIS-IV'!Q129 -> w | O7: ='WAIS-IV'!Q130 ->  | P7: ='WAIS-IV'!Q132 ->  | Q7: ='WAIS-IV'!Q133 ->  | R7: ='WAIS-IV'!Q134 -> s
C8: Positive or Negative: | D8: =IF(D6="","",IF(SIGN(D6)=1,"+",IF(SIGN(D6)=-1,"-",""))) -> - | E8: + | F8: =IF(F6="","",IF(SIGN(F6)=1,"+",IF(SIGN(F6)=-1,"-",""))) -> + | H8: =IF(H6="","",IF(SIGN(H6)=1,"+",IF(SIGN(H6)=-1,"-",""))) -> + | I8: =IF(I6="","",IF(SIGN(I6)=1,"+",IF(SIGN(I6)=-1,"-",""))) -> - | J8: =IF(J6="","",IF(SIGN(J6)=1,"+",IF(SIGN(J6)=-1,"-",""))) -> + | K8: =IF(K6="","",IF(SIGN(K6)=1,"+",IF(SIGN(K6)=-1,"-",""))) ->  | M8: - | N8: =IF(N6="","",IF(SIGN(N6)=1,"+",IF(SIGN(N6)=-1,"-",""))) -> - | P8: =IF(P6="","",IF(SIGN(P6)=1,"+",IF(SIGN(P6)=-1,"-",""))) -> - | Q8: + | R8: =IF(R6="","",IF(SIGN(R6)=1,"+",IF(SIGN(R6)=-1,"-",""))) -> +
B9: INPUT
B10: Attention-Concentration | L10: =IF(L7="",L8,L7) ->  | M10: w | N10: w | P10: - | Q10: + | R10: s
B11: Auditory-Vocal Channel | D11: =IF(D7="",D8,D7) -> w | E11: =IF(E7="",E8,E7) -> s | F11: =IF(F7="",F8,F7) -> + | G11: =IF(G7="",G8,G7) -> s | M11: =M10 -> w | N11: =N10 -> w | O11: =O10 -> 
B12: Complex Verbal Directions | H12: =IF(H7="",H8,H7) -> + | I12: =IF(I7="",I8,I7) -> w | K12: =IF(K7="",K8,K7) ->  | P12: =P10 -> - | Q12: =Q10 -> + | R12: =R10 -> s
B13: Essential from Non Essential | D13: =D11 -> w | I13: =I12 -> w | L13: =L10 ->  | P13: =P12 -> - | R13: =R12 -> s
B14: Encoding Information for Processing | M14: =M11 -> w | N14: =N11 -> w | O14: =O11 ->  | P14: =P13 -> - | Q14: =Q12 -> + | R14: =R12 -> s
B15: Understanding Long Questions | G15: =G11 -> s | N15: =N14 -> w
B16: Understanding Words | D16: =D13 -> w | E16: =IF(E7="",E8,E7) -> s | M16: =M14 -> w | O16: =O14 -> 
B17: Visual Motor Channel | H17: =H12 -> + | L17: =L13 ->  | P17: =P14 -> - | Q17: =Q14 -> + | R17: =R14 -> s
B18: Visual Perception-Abstr. Stim. | H18: =H17 -> + | I18: =I13 -> w | J18: =IF(J7="",J8,J7) -> s | P18: =P17 -> - | Q18: =Q17 -> + | R18: =R17 -> s
B19: Visual Perception-Cmpl. Mean. Stim. | K19: =K12 ->  | L19: =L17 -> 
B20: INTEGRATION/STORAGE
B21: Achievement | D21: =D16 -> w | E21: =E16 -> s | F21: =F11 -> + | G21: =G15 -> s | N21: =N15 -> w
B22: Acquired Knowledge | E22: =E21 -> s | F22: =F21 -> + | N22: =N21 -> w
B23: Concept Formation | D23: =D21 -> w | E23: =E22 -> s | H23: =H18 -> +
B24: Crystallized Intelligence | D24: =D23 -> w | E24: =E23 -> s | F24: =F22 -> + | G24: =G21 -> s
B25: Culture Loaded Knowledge | F25: =F24 -> + | G25: =G24 -> s
B26: Facility with Numbers | K26: =K19 ->  | M26: =M16 -> w | N26: =N22 -> w | O26: =O16 ->  | Q26: =Q18 -> +
B27: Fluid Intelligence | D27: =D24 -> w | I27: =I18 -> w | K27: =K26 ->  | N27: =N26 -> w
B28: Fund of Information | E28: =E24 -> s | F28: =F25 -> +
B29: Memory | F29: =F28 -> + | M29: =M16 -> w | N29: =N27 -> w | O29: =O26 -> 
B30: Nonverbal Reasoning | I30: =I27 -> w | K30: =K27 -> 
B31: Planning Ability | P31: =P18 -> - | R31: =R18 -> s
B32: Sequencing | M32: =M29 -> w | N32: =N29 -> w | O32: =O29 ->  | Q32: =Q26 -> +
B33: Verbal Reasoning | D33: =D27 -> w | G33: =G25 -> s
B34: Visual Memory | L34: =L19 ->  | Q34: =Q32 -> +
B35: Visual Processing | H35: =H23 -> + | I35: =I30 -> w | J35: =J18 -> s | K35: =K30 ->  | L35: =L34 ->  | R35: =R31 -> s
B36: Visual Sequencing | Q36: =Q34 -> + | R36: =R35 -> s
B37: OUTPUT
B38: Much Verbal Expression | E38: =E28 -> s | G38: =G33 -> s
B39: Simple Verbal expression | F39: =F29 -> + | M39: =M32 -> w | N39: =N32 -> w | O39: =O32 -> 
B40: Visual Organization | I40: =I35 -> w | J40: =J35 -> s | L40: =L35 -> 
B41: Visual-Motor Coordination | H41: =H35 -> + | P41: =P31 -> - | Q41: =Q36 -> + | R41: =R36 -> s

Sheet GF-GC
B2: WAIS-IV Gf-Gc Classifications?
B4: CRYSTALLIZED INTELLIGENCE (Gc) is the breadth and depth of a person’s acquired knowledge of a culture and the effective application of this knowledge.
C5: Subtest | D5: Score | E5: Narrow Ability
C6: Similarities | D6: =IF(sim="","",sim) -> 2 | E6: (Language Development)
C7: Information | D7: =IF(IN="","",IN) -> 9 | E7: (General (Verbal) Information)
C8: Vocabulary | D8: =IF(VOC="","",VOC) -> 9 | E8: (Lexical Knowledge)
C9: Comprehension | D9: =IF(COMP="","",COMP) ->  | E9: (Language Development)
B11: VISUAL PROCESSING (Gv) is the ability to generate, perceive, analyze, synthesize, manipulate, transform, and think with visual patterns and stimuli.
C12: Subtest | D12: Score | E12: Narrow Ability
C13: Block Design | D13: =IF(bd="","",bd) -> 6 | E13: (Spatial Relations)
C14: Visual Puzzles | D14: =IF(VP="","",VP) -> 7 | E14: (Visualization)
C15: Picture Completion | D15: =IF(PCm="","",PCm) ->  | E15: (Flexibility of Closure, General (Verbal) Information)
B17: SHORT-TERM MEMORY (Gsm) is the ability to apprehend and hold information in immediate awareness and then use it within a few seconds.
C18: Subtest | D18: Score | E18: Narrow Ability
C19: Digit Span Forward | D19: =IF(dsf="","",dsf) -> 18 | E19: (Memory Span)
C20: Digit Span Backward | D20: =IF(dsb="","",dsb) -> 17 | E20: (Working Memory)
C21: Digit Span Sequencing | D21: =IF(dssq="","",dssq) -> 13 | E21: (Working Memory)
C22: Letter-Number Sequencing | D22: =IF(lns="","",lns) ->  | E22: (Working Memory)
B24: PROCESSING SPEED (Gs) is the ability to perform cognitive tasks fluently and automatically, especially when under pressure to maintain focused attention and concentration.
C25: Subtest | D25: Score | E25: Narrow Ability
C26: Symbol Search | D26: =IF(SS="","",SS) -> 2 | E26: (Perceptual Speed)
C27: Coding | D27: =IF(CD="","",CD) -> 8 | E27: (Rate-of-Test-Taking)
C28: Cancellation | D28: =IF(CA="","",CA) -> 11 | E28: (Perceptual Speed)
B30: FLUID INTELLIGENCE (Gf) is the ability to use and engage in various mental operations when faced with a relatively novel task that cannot be performed automatically.
C31: Subtest | D31: Score | E31: Narrow Ability
C32: Matrix Reasoning | D32: =IF(MR="","",MR) -> 2 | E32: (Inductive Reasoning)
C33: Figure Weights | D33: =IF(FW="","",FW) ->  | E33: (Quantitative Reasoning)
B35: QUANTITATIVE KNOWLEDGE (Gq) represents an individual’s store of acquired quantitative declarative and procedural knowledge. It involves the ability to use quantitative information and manipulate numeric symbols.
C36: Subtest | D36: Score | E36: Narrow Ability
C37: Arithmetic | D37: =IF(AR="","",AR) -> 2 | E37: (Math Achievement)

Sheet Ways to Sort
A1: Possible Ways of Sorting Out WAIS-IV Scores
A2: FSIQ
D3: SI | E3: VC | F3: IN | G3: (CO) | H3: BD | I3: MR | J3: VP | K3: (FW) | L3: (PCm) | M3: DS | N3: AR | O3: (LN) | P3: SS | Q3: CD | R3: (CA)
D4: =IF(sim="","",sim) -> 2 | E4: =IF(VOC="","",VOC) -> 9 | F4: =IF(IN="","",IN) -> 9 | G4: =IF(COMP="","",COMP) ->  | H4: =IF(bd="","",bd) -> 6 | I4: =IF(MR="","",MR) -> 2 | J4: =IF(VP="","",VP) -> 7 | K4: =IF(FW="","",FW) ->  | L4: =IF(PCm="","",PCm) ->  | M4: =IF(DS="","",DS) -> 3 | N4: =IF(AR="","",AR) -> 2 | O4: =IF(lns="","",lns) ->  | P4: =IF(SS="","",SS) -> 2 | Q4: =IF(CD="","",CD) -> 8 | R4: =IF(CA="","",CA) -> 11
D5: Full Scale Intelligence Quotient
A7: MAJOR SCALES | C7: SI | D7: VC | E7: IN | F7: (CO) | G7: DS | H7: AR | I7: LN | J7: (PCm) | L7: (PCm) | M7: BD | N7: MR | O7: VP | P7: (FW) | Q7: SS | R7: CD | S7: (CA)
C8: =IF(sim="","",sim) -> 2 | D8: =IF(VOC="","",VOC) -> 9 | E8: =IF(IN="","",IN) -> 9 | F8: =IF(COMP="","",COMP) ->  | G8: =IF(DS="","",DS) -> 3 | H8: =IF(AR="","",AR) -> 2 | I8: =IF(lns="","",lns) ->  | J8: =IF(PCm="","",PCm) ->  | L8: =IF(PCm="","",PCm) ->  | M8: =IF(bd="","",bd) -> 6 | N8: =IF(MR="","",MR) -> 2 | O8: =IF(VP="","",VP) -> 7 | P8: =IF(FW="","",FW) ->  | Q8: =IF(SS="","",SS) -> 2 | R8: =IF(CD="","",CD) -> 8 | S8: =IF(CA="","",CA) -> 11
C9: Verbal | L9: Nonverbal/Perceptual
A11: GAI / DWI SCORES | C11: SI | D11: VC | E11: IN | F11: (CO) | G11: BD | H11: MR | I11: VP | J11: (FW) | K11: (PCm) | M11: DS | N11: AR | O11: (LN) | P11: SS | Q11: CD | R11: (CA)
C12: =IF(sim="","",sim) -> 2 | D12: =IF(VOC="","",VOC) -> 9 | E12: =IF(IN="","",IN) -> 9 | F12: =IF(COMP="","",COMP) ->  | G12: =IF(CA="","",CA) -> 11 | H12: =IF(MR="","",MR) -> 2 | I12: =IF(VP="","",VP) -> 7 | J12: =IF(FW="","",FW) ->  | K12: =IF(PCm="","",PCm) ->  | M12: =IF(DS="","",DS) -> 3 | N12: =IF(AR="","",AR) -> 2 | O12: =IF(lns="","",lns) ->  | P12: =IF(SS="","",SS) -> 2 | Q12: =IF(CD="","",CD) -> 8 | R12: =IF(CA="","",CA) -> 11
C13: GAI: Emphasizing verbal and nonverbal thinking | M13: DWI-2: Emphasizing short-term memory and processing speed
A15: INDICES | C15: SI | D15: VC | E15: IN | F15: (CO) | H15: BD | I15: MR | J15: VP | K15: (FW) | L15: (PCm) | N15: DS | O15: AR | P15: (LN) | R15: SS | S15: CD | T15: (CA)
C16: =IF(sim="","",sim) -> 2 | D16: =IF(VOC="","",VOC) -> 9 | E16: =IF(IN="","",IN) -> 9 | F16: =IF(COMP="","",COMP) ->  | H16: =IF(bd="","",bd) -> 6 | I16: =IF(sim="","",sim) -> 2 | J16: =IF(VP="","",VP) -> 7 | K16: =IF(FW="","",FW) ->  | L16: =IF(PCm="","",PCm) ->  | N16: =IF(DS="","",DS) -> 3 | O16: =IF(AR="","",AR) -> 2 | P16: =IF(lns="","",lns) ->  | R16: =IF(SS="","",SS) -> 2 | S16: =IF(CD="","",CD) -> 8 | T16: =IF(CA="","",CA) -> 11
C17: Verbal Comprehension | H17: Perceptual Reasoning | N17: Working Memory | R17: Processing Speed
A19: GROUPS TO BE CONTEMPLATED IN GENERATING HYPOTHESES
C20: SI | D20: VC | F20: IN | G20: CO | I20: IN | J20: AR | K20: [VC?] | M20: (FW) | N20: PCm | P20: BD | Q20: MR | R20: VP
C21: =IF(sim="","",sim) -> 2 | D21: =IF(VOC="","",VOC) -> 9 | F21: =IF(IN="","",IN) -> 9 | G21: =IF(COMP="","",COMP) ->  | I21: =IF(IN="","",IN) -> 9 | J21: =IF(AR="","",AR) -> 2 | K21: =IF(VOC="","",VOC) -> 9 | M21: =IF(FW="","",FW) ->  | N21: =IF(PCm="","",PCm) ->  | P21: =IF(bd="","",bd) -> 6 | Q21: =IF(MR="","",MR) -> 2 | R21: =IF(VP="","",VP) -> 7
C22: Subtests emphasizing word meanings | F22: Subtests emphasizing factual knowledge | I22: Subtests emphasizing school-acquired knowledge | M22: Subtests with pictorial stimuli | P22: Subtests with abstract designs
C24: SI | D24: CO | F24: VC | G24: IN | I24: SI | J24: VC | K24: IN | M24: CO | N24: AR | P24: SI | Q24: MR | R24: FW | S24: SS | T24: CA
C25: =IF(sim="","",sim) -> 2 | D25: =IF(COMP="","",COMP) ->  | F25: =IF(VOC="","",VOC) -> 9 | G25: =IF(IN="","",IN) -> 9 | I25: =IF(sim="","",sim) -> 2 | J25: =IF(VOC="","",VOC) -> 9 | K25: =IF(IN="","",IN) -> 9 | M25: =IF(COMP="","",COMP) ->  | N25: =IF(AR="","",AR) -> 2 | P25: =IF(sim="","",sim) -> 2 | Q25: =IF(sim="","",sim) -> 2 | R25: =IF(FW="","",FW) ->  | S25: =IF(SS="","",SS) -> 2 | T25: =IF(CA="","",CA) -> 11
C26: Subtests emphasizing reasoning over knowledge | F26: Subtests emphasizing knowledge over reasoning | I26: Subtests with relatively short questions | M26: Subtests with relatively long questions | P26: Subtests emphasizing reasoning
C28: SI | D28: VC | E28: IN | F28: AR | H28: VC | I28: CO | K28: DS F | M28: DS B | N28: DS S | O28: LN | P28: [AR?] | R28: CA
C29: =IF(sim="","",sim) -> 2 | D29: =IF(VOC="","",VOC) -> 9 | E29: =IF(IN="","",IN) -> 9 | F29: =IF(AR="","",AR) -> 2 | H29: =IF(VOC="","",VOC) -> 9 | I29: =IF(COMP="","",COMP) ->  | K29: =IF(dsf="","",dsf) -> 18 | M29: =IF(dsb="","",dsb) -> 17 | N29: =IF(dssq="","",dssq) -> 13 | O29: =IF(lns="","",lns) ->  | P29: =IF(AR="","",AR) -> 2 | R29: =IF(CA="","",CA) -> 11
C30: Subtests with relatively short answers | H30: Subtests with relatively long answers | K30: Memory Span | M30: Working Memory | R30: Vigilance
C32: BD | E32: MR | G32: BDN | H32: VP | I32: FW | J32: PCm | K32: AR | L32: SS | M32: CD | N32: CA
C33: =IF(CA="","",CA) -> 11 | E33: =IF(MR="","",MR) -> 2 | G33: =IF(bdnt="","",bdnt) -> 14 | H33: =IF(VP="","",VP) -> 7 | I33: =IF(FW="","",FW) ->  | J33: =IF(PCm="","",PCm) ->  | K33: =IF(AR="","",AR) -> 2 | L33: =IF(SS="","",SS) -> 2 | M33: =IF(CD="","",CD) -> 8 | N33: =IF(CA="","",CA) -> 11
B34: Speed bonus | E34: No time limits | G34: Time limits
C36: BD vs BND | F36: DS F vs DS B | I36: DS F vs DS S | L36: DS B vs DS S
C37: =IF(CA="","",CA) -> 11 | D37: =IF(bdnt="","",bdnt) -> 14 | F37: =IF(dsf="","",dsf) -> 18 | G37: =IF(dsb="","",dsb) -> 17 | I37: =IF(dsf="","",dsf) -> 18 | J37: =IF(dssq="","",dssq) -> 13 | L37: =IF(dsb="","",dsb) -> 17 | M37: =IF(dssq="","",dssq) -> 13
C38: Process Comparisons

Sheet Cult. & Linq.
E2: WAIS-IV Cultural / Linguistic Matrix
E4: Degree of Linguistic Demands
E5: High | G5: Moderate | I5: Low
C6: Level Cultural Loading | D6: High | M6: =IF(J8="",0,J8) -> 0 | N6: =IF(J8="","",1) -> 
E7: Similarities | F7: =IF(sim="","",sim) -> 2 | K7: High Cultural | M7: =IF(F7="",0,F7) -> 2 | N7: =IF(F7="","",1) -> 1
E8: Vocabulary | F8: =IF(VOC="","",VOC) -> 9 | I8: Picture Completion | J8: =IF(PCm="","",PCm) ->  | K8: Average: | L8: =O10/P10 -> 5.5 | M8: =IF(F8="",0,F8) -> 9 | N8: =IF(F8="","",1) -> 1
E9: Comprehension | F9: =IF(COMP="","",COMP) ->  | K9: Standard Score: | L9: =15*(L8-10)/3+100 -> 77.5 | M9: =IF(F9="",0,F9) -> 0 | N9: =IF(F9="","",1) -> 
E10: Information | F10: =F18 ->  | M10: =IF(F10="",0,F10) -> 0 | N10: =IF(F10="","",1) ->  | O10: =SUM(M6:M10) -> 11 | P10: =SUM(N6:N10) -> 2
D11: Moderate
K12: Moderate Cultural
G13: Arithmetic | H13: =IF(AR="","",AR) -> 2 | K13: Average: | L13: =M13/N13 -> 2 | M13: =IF(H13="",0,H13) -> 2 | N13: =IF(H13="","",1) -> 1
K14: Standard Score: | L14: =15*(L13-10)/3+100 -> 60
D17: Low | G17: Block Design | H17: =IF(bd="","",bd) -> 6 | I17: Matrix Reasoning | J17: =IF(MR="","",MR) -> 2 | K17: Low Cultural | M17: =IF(H17="",0,H17) -> 6 | N17: =IF(H17="","",1) -> 1
E18: Letter-Number Sequencing | F18: =IF(lns="","",lns) ->  | G18: Digit Span | H18: =IF(DS="","",DS) -> 3 | I18: Visual Puzzles | J18: =IF(VP="","",VP) -> 7 | K18: Average: | L18: =O25/P25 -> 5.571428571 | M18: =IF(H18="",0,H18) -> 3 | N18: =IF(H18="","",1) -> 1
G19: Symbol Search | H19: =IF(SS="","",SS) -> 2 | I19: Figure Weights | J19: =IF(FW="","",FW) ->  | K19: Standard Score: | L19: =15*(L18-10)/3+100 -> 77.85714286 | M19: =IF(H19="",0,H19) -> 2 | N19: =IF(H19="","",1) -> 1
G20: Coding | H20: =IF(CD="","",CD) -> 8 | I20: Cancellation | J20: =IF(CA="","",CA) -> 11 | M20: =IF(H20="",0,H20) -> 8 | N20: =IF(H20="","",1) -> 1
M21: =IF(F18="",0,F18) -> 0 | N21: =IF(F18="","",1) -> 
E22: High Linguistic | G22: Moderate Linguistic | I22: Low Linguistic | M22: =IF(J17="",0,J17) -> 2 | N22: =IF(J17="","",1) -> 1
E23: Average: | F23: =F35/G35 -> 5.5 | G23: Average: | H23: =H35/I35 -> 4.2 | I23: Average: | J23: =J35/K35 -> 6.666666667 | M23: =IF(J18="",0,J18) -> 7 | N23: =IF(J18="","",1) -> 1
E24: Standard Score: | F24: =15*(F23-10)/3+100 -> 77.5 | G24: Standard Score: | H24: =15*(H23-10)/3+100 -> 71 | I24: Standard Score: | J24: =15*(J23-10)/3+100 -> 83.33333333 | M24: =IF(J19="",0,J19) -> 0 | N24: =IF(J19="","",1) -> 
M25: =IF(J20="",0,J20) -> 11 | N25: =IF(J20="","",1) -> 1 | O25: =SUM(M17:M25) -> 39 | P25: =SUM(N17:N25) -> 7
C26: Adapted from Dawn Flanagan, Samuel Ortiz, and Vincent Alfonso's Essentials of Cross-Battery Assessment (Wiley, 2007) Append D.
F29: =IF(F7="",0,F7) -> 2 | G29: =IF(F7="","",1) -> 1 | J29: =IF(J8="",0,J8) -> 0 | K29: =IF(J8="","",1) -> 
F30: =IF(F8="",0,F8) -> 9 | G30: =IF(F8="","",1) -> 1 | H30: =IF(H13="",0,H13) -> 2 | I30: =IF(H13="","",1) -> 1 | J30: =IF(J17="",0,J17) -> 2 | K30: =IF(J17="","",1) -> 1
F31: =IF(F9="",0,F9) -> 0 | G31: =IF(F9="","",1) ->  | H31: =IF(H17="",0,H17) -> 6 | I31: =IF(H17="","",1) -> 1 | J31: =IF(J18="",0,J18) -> 7 | K31: =IF(J18="","",1) -> 1
F32: =IF(F10="",0,F10) -> 0 | G32: =IF(F10="","",1) ->  | H32: =IF(H18="",0,H18) -> 3 | I32: =IF(H18="","",1) -> 1 | J32: =IF(J19="",0,J19) -> 0 | K32: =IF(J19="","",1) -> 
H33: =IF(H19="",0,H19) -> 2 | I33: =IF(H19="","",1) -> 1 | J33: =IF(J20="",0,J20) -> 11 | K33: =IF(J20="","",1) -> 1
F34: =IF(F18="",0,F18) -> 0 | G34: =IF(F18="","",1) ->  | H34: =IF(H20="",0,H20) -> 8 | I34: =IF(H20="","",1) -> 1
F35: =SUM(F29:F34) -> 11 | G35: 2 | H35: 21 | I35: 5 | J35: 20 | K35: 3
